[Event "CZE-ch U12 Open 2023"]
[Site "Teplice"]
[Date "2023.03.14"]
[Round "5.1"]
[White "Policar, Martin"]
[Black "Mydlar, Matej"]
[Result "0-1"]
[ECO "A45"]
[WhiteElo "1552"]
[BlackElo "1586"]
[Annotator "NA RC COMBH"]
[PlyCount "60"]
[EventDate "2023.03.09"]
[EventType "swiss"]
[EventCountry "CZE"]
[SourceTitle "playchess.com"]
[Source "ChessBase"]
[SourceQuality "1"]
[TimeControl "40/5400+30:1800+30"]

1. d4 {[%emt 0:00:10]} Nf6 {[%emt 0:00:19]} 2. g3 {[%emt 0:00:12]} e6 {[%emt 0:02:26]} 3. Bg2 {[%emt 0:00:11]} d5 {[%emt 0:00:12]} 4. Nf3 {[%emt 0:00:50]} Nbd7 {[%emt 0:00:13]} 5. O-O {[%emt 0:02:00]} b6 {[%emt 0:01:34]} 6. Bf4 {[%emt 0:04:06]} Ne4 {[%emt 0:02:22]} 7. Nbd2 {[%emt 0:01:20]} Bb7 {[%emt 0:01:20]} 8. Nxe4 {[%emt 0:05:25]} dxe4 {[%emt 0:00:08]} 9. Nd2 {[%emt 0:00:43]} f5 {[%emt 0:00:36]} 10. Nc4 {[%emt 0:03:52]} Be7 {[%emt 0:02:02]} 11. e3 {[%emt 0:08:42]} Nf6 {[%emt 0:07:54]} 12. Ne5 {[%emt 0:01:32]} O-O {[%emt 0:03:30]} 13. c4 {[%emt 0:05:19]} Qe8 {[%emt 0:01:17]} 14. Kh1 {[%emt 0:07:08]} Rd8 {[%emt 0:01:00]} 15. Qe2 {[%emt 0:02:45]} h6 {[%emt 0:05:24]} 16. g4 {[%emt 0:01:23]} c5 {[%emt 0:03:16]} 17. Rad1 {[%emt 0:01:54]} g5 {[%emt 0:02:42]} 18. Bg3 {[%emt 0:00:45]} cxd4 {[%emt 0:00:08]} 19. h3 {[%emt 0:05:21]} Bb4 {[%emt 0:05:24]} 20. Qc2 {[%emt 0:03:46]} Bc5 {[%emt 0:02:22]} 21. gxf5 exf5 {[%emt 0:01:02]} 22. exd4 {[%emt 0:06:11]} Bxd4 {[%emt 0:04:03]} 23. f4 {[%emt 0:01:26]} Nh5 {[%emt 0:00:19]} 24. Bh2 {[%emt 0:01:44]} gxf4 {[%emt 0:00:25]} 25. Bf3 {[%emt 0:06:13]} Bxe5 {[%emt 0:11:06]} 26. Rxd8 {[%emt 0:00:56]} exf3 {[%emt 0:00:41]} 27. Rg1+ {[%emt 0:00:57]} Kh8 {[%emt 0:00:32]} 28. Rxe8 {[%emt 0:05:54]} f2+ {[%emt 0:00:34]} 29. Rg2 {[%emt 0:00:03]} f1=Q+ {[%emt 0:00:06]} 30. Bg1 {[%emt 0:00:08]} Bxg2+ {[%emt 0:00:16]} 0-1

[Event "CZE-ch U12 Open 2023"]
[Site "Teplice"]
[Date "2023.03.14"]
[Round "5.2"]
[White "Sochor, Antonin"]
[Black "Kroulik, Vaclav"]
[Result "0-1"]
[ECO "B40"]
[WhiteElo "1574"]
[BlackElo "1772"]
[Annotator "NA RC COMBH"]
[PlyCount "112"]
[EventDate "2023.03.09"]
[EventType "swiss"]
[EventCountry "CZE"]
[SourceTitle "playchess.com"]
[Source "ChessBase"]
[SourceQuality "1"]
[TimeControl "40/5400+30:1800+30"]

1. e4 {[%emt 0:00:09]} c5 {[%emt 0:00:06]} 2. Nf3 {[%emt 0:00:41]} e6 {[%emt 0:00:05]} 3. c4 {[%emt 0:00:09]} Nc6 {[%emt 0:00:18]} 4. d4 {[%emt 0:00:14]} cxd4 {[%emt 0:00:04]} 5. Nxd4 {[%emt 0:00:26]} Nf6 {[%emt 0:00:15]} 6. Nc3 {[%emt 0:00:11]} Bb4 {[%emt 0:01:26]} 7. Nxc6 {[%emt 0:00:14]} dxc6 {[%emt 0:00:52]} 8. Qxd8+ {[%emt 0:00:45]} Kxd8 {[%emt 0:00:02]} 9. f3 {[%emt 0:00:12]} Nd7 {[%emt 0:02:17]} 10. Bd2 {[%emt 0:01:12]} Ke7 {[%emt 0:03:58]} 11. O-O-O {[%emt 0:02:05]} a5 {[%emt 0:06:01]} 12. Kc2 {[%emt 0:04:56]} Re8 {[%emt 0:01:43]} 13. g3 {[%emt 0:02:09]} Kf8 {[%emt 0:00:58]} 14. Bg2 {[%emt 0:00:56]} e5 {[%emt 0:02:53]} 15. Be3 {[%emt 0:08:05]} Bc5 {[%emt 0:07:24]} 16. Bxc5+ {[%emt 0:04:40]} Nxc5 {[%emt 0:00:12]} 17. b3 {[%emt 0:00:51]} Be6 {[%emt 0:08:28]} 18. a3 {[%emt 0:05:44]} a4 {[%emt 0:01:29]} 19. b4 {[%emt 0:09:31]} Nb3 {[%emt 0:01:13]} 20. c5 {[%emt 0:01:03]} Nd4+ {[%emt 0:00:52]} 21. Kb2 {[%emt 0:00:16]} Reb8 {[%emt 0:03:56]} 22. Rc1 {[%emt 0:08:10]} b6 {[%emt 0:02:43]} 23. cxb6 {[%emt 0:03:50]} Rxb6 {[%emt 0:00:13]} 24. Na2 {[%emt 0:00:18]} Bb3 {[%emt 0:15:05]} 25. Rhf1 {[%emt 0:04:59]} Ke7 {[%emt 0:01:21]} 26. Rf2 {[%emt 0:04:37]} Rd8 {[%emt 0:02:39]} 27. f4 {[%emt 0:04:02]} f6 {[%emt 0:03:00]} 28. Bf1 {[%emt 0:01:39]} Ne6 {[%emt 0:04:13]} 29. Bc4 {[%emt 0:06:59]} Bxa2 {[%emt 0:05:55]} 30. Bxa2 {[%emt 0:00:39]} exf4 {[%emt 0:00:57]} 31. gxf4 {[%emt 0:00:41]} Rd4 {[%emt 0:01:13]} 32. Rc4 {[%emt 0:05:01]} Rd3 {[%emt 0:03:27]} 33. Bb1 {[%emt 0:02:26]} Rd4 {[%emt 0:05:03]} 34. Rxd4 {[%emt 0:01:31]} Nxd4 {[%emt 0:00:06]} 35. Kc3 {[%emt 0:00:29]} Nb5+ {[%emt 0:01:05]} 36. Kb2 {[%emt 0:01:13]} Rb7 {[%emt 0:00:57]} 37. Bc2 {[%emt 0:00:55]} Ra7 {[%emt 0:01:06]} 38. Rg2 {[%emt 0:01:35]} g6 {[%emt 0:00:19]} 39. Rd2 {[%emt 0:01:07]} Nd6 {[%emt 0:00:50]} 40. Rd4 {[%emt 0:03:40]} Rb7 {[%emt 0:01:33]} 41. Kc1 {[%emt 0:30:58]} Ra7 {[%emt 0:30:31]} 42. Kd2 {[%emt 0:00:49]} Ra6 {[%emt 0:01:00]} 43. Ke3 {[%emt 0:00:28]} Nb5 {[%emt 0:00:43]} 44. Rd3 {[%emt 0:00:23]} Nc7 {[%emt 0:00:40]} 45. h4 {[%emt 0:03:31]} h6 {[%emt 0:00:15]} 46. Kf3 {[%emt 0:01:33]} Ne8 {[%emt 0:01:03]} 47. Re3 {[%emt 0:00:38]} Nc7 {[%emt 0:00:46]} 48. Kg4 {[%emt 0:00:37]} Kf7 {[%emt 0:01:01]} 49. h5 {[%emt 0:01:56]} gxh5+ {[%emt 0:02:55]} 50. Kxh5 {[%emt 0:00:25]} Ne8 {[%emt 0:01:08]} 51. Kxh6 {[%emt 0:01:04]} f5 {[%emt 0:00:57]} 52. e5 {[%emt 0:00:32]} Ng7 {[%emt 0:02:09]} 53. Kg5 {[%emt 0:02:12]} Ne6+ {[%emt 0:00:07]} 54. Kh4 {[%emt 0:00:59]} Nxf4 {[%emt 0:00:34]} 55. Bxf5 {[%emt 0:00:53]} Ng2+ {[%emt 0:00:08]} 56. Kg3 {[%emt 0:00:44]} Nxe3 {[%emt 0:00:05]} 0-1

[Event "CZE-ch U12 Open 2023"]
[Site "Teplice"]
[Date "2023.03.14"]
[Round "5.3"]
[White "Bara, Jan"]
[Black "Mik, Tomas"]
[Result "0-1"]
[ECO "A16"]
[WhiteElo "1712"]
[BlackElo "1911"]
[Annotator "TA"]
[PlyCount "76"]
[EventDate "2023.03.09"]
[EventType "swiss"]
[EventCountry "CZE"]
[SourceTitle "playchess.com"]
[Source "ChessBase"]
[SourceQuality "1"]
[TimeControl "40/5400+30:1800+30"]

{[%evp 12,76,33,9,42,33,45,42,46,31,27,36,42,32,41,29,38,38,48,12,20,-5,5,-18,-14,-8,8,-20,-14,-25,-11,-28,-14,-18,-11,-11,-11,-11,-11,-11,-10,-10,-4,-11,-11,-16,-20,-24,-10,-151,-124,-127,-122,-169,-65,-132,0,-360,-373,-761,-754,-1487,-1489,-29985,-29982,-29991,-29992]} 1. c4 {[%emt 0:00:06]} Nf6 {[%emt 0:00:07]} 2. Nc3 {[%emt 0:00:07]} g6 {[%emt 0:00:07]} 3. g3 {[%emt 0:00:34]} Bg7 {[%emt 0:00:21]} 4. Bg2 {[%emt 0:00:08]} O-O {[%emt 0:00:15]} 5. Nf3 {[%emt 0:00:23]} d6 {[%emt 0:02:01]} 6. O-O {[%emt 0:00:24]} Nbd7 {[%emt 0:00:55]} 7. d3 {[%emt 0:01:00]} c5 {[%emt 0:01:30] A16: English Opening: 1...Nf6 with ...d5.} 8. Rb1 {[%emt 0:01:36] [#]} Re8 $146 {[%emt 0:01:59]} ({Predecessor:} 8... Rb8 9. a3 b6 10. b4 Bb7 11. Bb2 Ng4 12. h3 Nge5 13. Nxe5 Nxe5 14. Qa4 Bxg2 15. Kxg2 Qd7 16. Qxd7 Nxd7 17. Nd5 Rfe8 18. Nc7 Rec8 19. Nd5 Re8 20. Nc7 Rec8 21. Nd5 Re8 22. Nc7 {½-½ Gavarrete,N (2325)-Granero Roca,A (2359) Montserrat 2021 (9)}) 9. a3 {[%emt 0:01:44]} a6 {[%emt 0:08:27] White is slightly better.} 10. Qc2 {[%emt 0:04:44]} Rb8 {[%emt 0:01:13]} 11. b4 {[%emt 0:00:31]} Qc7 {[%emt 0:01:18]} 12. Bd2 {[%emt 0:06:39]} b6 {[%emt 0:01:49]} 13. b5 {[%emt 0:13:35]} a5 {[%emt 0:01:49]} 14. Ng5 {[%emt 0:06:41]} Bb7 {[%emt 0:02:31]} 15. Nge4 {[%emt 0:01:50]} Nxe4 16. Nxe4 {[%emt 0:03:23]} f5 {[%emt 0:07:55]} 17. Ng5 {[%emt 0:02:37]} Bxg2 {[%emt 0:00:43]} 18. Kxg2 {[%emt 0:00:16]} e6 {[%emt 0:07:22]} 19. h4 {[%emt 0:03:41]} Qb7+ {[%emt 0:02:04]} 20. Nf3 {[%emt 0:02:02][%cal Oh4h5]} Ne5 {[%emt 0:00:37]} 21. Bc3 {[%emt 0:03:29]} Nxf3 {[%emt 0:01:17]} 22. exf3 {[%emt 0:00:05]} e5 {[%emt 0:11:38]} 23. Rbe1 {[%emt 0:04:05]} Re7 {[%emt 0:02:28]} 24. Re2 {[%emt 0:01:21]} Rbe8 {[%emt 0:00:42]} 25. Rfe1 {[%emt 0:01:14]} Bf6 {[%emt 0:04:54]} 26. Bd2 {[%emt 0:05:27]} Kg7 {[%emt 0:00:55]} 27. Bc1 {[%emt 0:02:12]} h6 {[%emt 0:01:47][%cal Bh7h6,Bh6g5][%mdl 32]} 28. Re3 {[%emt 0:05:31]} g5 {[%emt 0:02:22]} 29. hxg5 {[%emt 0:01:06]} hxg5 {[%emt 0:00:35] Threatens to win with ...Rh8.} 30. Kf1 {[%emt 0:07:03]} (30. Rh1 $11) 30... Rh8 $17 {[%emt 0:02:17] Strongly threatening ...g4.} 31. Ke2 {[%emt 0:04:00]} Rh2 {[%emt 0:00:28]} 32. Rg1 {[%emt 0:03:26]} (32. Kd1 $17) 32... Qc8 {[%emt 0:14:40]} (32... Kf8 $19 33. Kd1 Reh7) 33. Qd1 {[%emt 0:07:23] [#]} (33. Kd1 $15) 33... e4 {[%emt 0:01:24] Black is more active.} 34. Kf1 $2 {[%emt 0:06:45][%mdl 8192]} (34. dxe4 $11 fxe4 35. Rxe4) 34... Bd4 $19 {[%emt 0:00:22] ...f4 is the strong threat.} 35. Re2 $2 {[%emt 0:00:09] [#]} (35. Ke1) 35... f4 $1 {[%emt 0:05:22][%mdl 512]} 36. g4 {[%emt 0:00:37] White is weak on the dark squares} (36. dxe4 fxg3) 36... Qh8 {[%emt 0:01:51] ( -> ...Qh3+)} 37. Bb2 {[%emt 0:02:08]} Bxb2 38. Rxb2 exd3 {[%emt 0:01:10] Weighted Error Value: White=0.75/Black=0.13 (very precise)} 0-1

[Event "CZE-ch U12 Open 2023"]
[Site "Teplice"]
[Date "2023.03.14"]
[Round "5.4"]
[White "Chernyy, Andrey"]
[Black "Sochor, Vaclav"]
[Result "1/2-1/2"]
[ECO "B40"]
[WhiteElo "1605"]
[BlackElo "1503"]
[Annotator "NA RC COMBH"]
[PlyCount "67"]
[EventDate "2023.03.09"]
[EventType "swiss"]
[EventCountry "CZE"]
[SourceTitle "playchess.com"]
[Source "ChessBase"]
[SourceQuality "1"]
[TimeControl "40/5400+30:1800+30"]

1. e4 {[%emt 0:00:03]} c5 {[%emt 0:00:23]} 2. Nf3 {[%emt 0:00:07]} e6 {[%emt 0:00:52]} 3. g3 {[%emt 0:00:10]} d5 {[%emt 0:00:46]} 4. exd5 {[%emt 0:00:19]} exd5 {[%emt 0:00:59]} 5. Bg2 {[%emt 0:01:10]} Nc6 {[%emt 0:02:04]} 6. O-O {[%emt 0:05:29]} Nf6 {[%emt 0:00:47]} 7. d4 {[%emt 0:01:29]} Be7 {[%emt 0:06:15]} 8. dxc5 {[%emt 0:02:43]} Bxc5 {[%emt 0:00:25]} 9. Re1+ {[%emt 0:04:52]} Be7 {[%emt 0:02:57]} 10. Nbd2 {[%emt 0:04:44]} O-O {[%emt 0:06:19]} 11. Nb3 {[%emt 0:02:45]} Bg4 {[%emt 0:04:05]} 12. c3 {[%emt 0:03:03]} Ne4 {[%emt 0:13:29]} 13. Be3 {[%emt 0:03:36]} f5 {[%emt 0:06:05]} 14. Nbd4 {[%emt 0:15:12]} Nxd4 {[%emt 0:04:55]} 15. Qxd4 {[%emt 0:02:37]} Bc5 {[%emt 0:01:57]} 16. Qd3 {[%emt 0:02:04]} Bxe3 {[%emt 0:05:45]} 17. fxe3 {[%emt 0:03:05]} Bxf3 {[%emt 0:06:02]} 18. Bxf3 {[%emt 0:00:11]} Rf6 {[%emt 0:05:54]} 19. Rad1 {[%emt 0:06:04]} Rd6 {[%emt 0:00:43]} 20. Qc2 {[%emt 0:09:10]} Rc8 {[%emt 0:01:33]} 21. Rd4 {[%emt 0:03:55]} Qg5 {[%emt 0:02:40]} 22. Bxe4 {[%emt 0:03:14]} fxe4 {[%emt 0:00:43]} 23. Qd2 {[%emt 0:01:32]} Qe5 {[%emt 0:06:41]} 24. Rd1 {[%emt 0:01:28]} Rc5 {[%emt 0:04:53]} 25. c4 {[%emt 0:03:14]} Qg5 {[%emt 0:02:02]} 26. Rxd5 {[%emt 0:01:56]} Rcxd5 {[%emt 0:00:09]} 27. cxd5 {[%emt 0:00:13]} h5 {[%emt 0:01:47]} 28. Kg2 {[%emt 0:09:16]} h4 {[%emt 0:01:30]} 29. Qc3 {[%emt 0:05:50]} Qg4 {[%emt 0:03:35]} 30. Rf1 {[%emt 0:04:28]} Rg6 {[%emt 0:06:05]} 31. Qc4 {[%emt 0:01:11]} hxg3 {[%emt 0:00:44]} 32. h3 {[%emt 0:00:27]} Qd7 {[%emt 0:00:57]} 33. d6+ Kh7 34. Rf8 1/2-1/2

[Event "CZE-ch U12 Open 2023"]
[Site "Teplice"]
[Date "2023.03.14"]
[Round "5.5"]
[White "Hladky, Mikulas"]
[Black "Boff, Ondrej"]
[Result "1/2-1/2"]
[ECO "A04"]
[WhiteElo "1476"]
[BlackElo "1561"]
[Annotator "NA RC COMBH"]
[PlyCount "52"]
[EventDate "2023.03.09"]
[EventType "swiss"]
[EventCountry "CZE"]
[SourceTitle "playchess.com"]
[Source "ChessBase"]
[SourceQuality "1"]
[TimeControl "40/5400+30:1800+30"]

1. Nf3 {[%emt 0:00:17]} c5 {[%emt 0:00:07]} 2. c4 {[%emt 0:00:22]} g6 {[%emt 0:00:23]} 3. e3 {[%emt 0:00:17]} Bg7 {[%emt 0:00:38]} 4. Nc3 {[%emt 0:01:18]} d6 {[%emt 0:01:17]} 5. Be2 {[%emt 0:00:50]} Nf6 {[%emt 0:01:50]} 6. O-O {[%emt 0:00:49]} O-O {[%emt 0:00:50]} 7. d4 {[%emt 0:00:16]} Nc6 {[%emt 0:02:21]} 8. d5 {[%emt 0:03:07]} Nb8 {[%emt 0:00:31]} 9. Ne1 {[%emt 0:04:27]} Bf5 {[%emt 0:02:05]} 10. f3 {[%emt 0:01:25]} a6 {[%emt 0:03:21]} 11. a4 {[%emt 0:01:22]} Ne8 {[%emt 0:05:30]} 12. e4 {[%emt 0:03:08]} Bd7 {[%emt 0:00:39]} 13. Be3 {[%emt 0:00:30]} f5 {[%emt 0:00:55]} 14. Qd2 {[%emt 0:02:10]} e6 {[%emt 0:07:32]} 15. Nd3 {[%emt 0:06:19]} exd5 {[%emt 0:05:00]} 16. exd5 {[%emt 0:01:23]} Bc8 {[%emt 0:03:33]} 17. Bh6 {[%emt 0:05:51]} Bd4+ {[%emt 0:01:44]} 18. Be3 {[%emt 0:01:12]} Bf6 {[%emt 0:01:57]} 19. Rfe1 {[%emt 0:03:40]} Nd7 {[%emt 0:02:00]} 20. Reb1 {[%emt 0:11:11]} Ne5 {[%emt 0:05:47]} 21. Nxe5 {[%emt 0:00:44]} Bxe5 {[%emt 0:00:36]} 22. Bg5 {[%emt 0:05:43]} Qc7 {[%emt 0:04:28]} 23. Bf4 {[%emt 0:05:46]} Bf6 {[%emt 0:01:34]} 24. Bg5 {[%emt 0:01:30]} Be5 {[%emt 0:01:19]} 25. Bf4 {[%emt 0:00:57]} Bf6 {[%emt 0:03:56]} 26. Bg5 {[%emt 0:00:45]} Be5 {[%emt 0:01:14]} 1/2-1/2

[Event "CZE-ch U12 Open 2023"]
[Site "Teplice"]
[Date "2023.03.14"]
[Round "5.6"]
[White "Mikulka, Martin Michael"]
[Black "Rudlof, Adam"]
[Result "1-0"]
[ECO "A45"]
[WhiteElo "1786"]
[BlackElo "1409"]
[Annotator "NA RC COMBH"]
[PlyCount "56"]
[EventDate "2023.03.09"]
[EventType "swiss"]
[EventCountry "CZE"]
[SourceTitle "playchess.com"]
[Source "ChessBase"]
[SourceQuality "1"]
[TimeControl "40/5400+30:1800+30"]

1. d4 {[%emt 0:00:02]} Nf6 {[%emt 0:00:05]} 2. Nc3 {[%emt 0:00:06]} c5 3. Nf3 {[%emt 0:03:00]} cxd4 {[%emt 0:03:28]} 4. Nxd4 {[%emt 0:00:07]} e5 {[%emt 0:02:30]} 5. Ndb5 {[%emt 0:02:29]} a6 {[%emt 0:01:44]} 6. Nd6+ {[%emt 0:00:33]} Bxd6 {[%emt 0:00:07]} 7. Qxd6 {[%emt 0:00:09]} Qe7 {[%emt 0:00:05]} 8. Qxe7+ {[%emt 0:00:43]} Kxe7 {[%emt 0:00:06]} 9. e4 {[%emt 0:00:19]} Nc6 {[%emt 0:00:44]} 10. Bg5 {[%emt 0:01:32]} Rb8 {[%emt 0:07:09]} 11. g3 {[%emt 0:07:14]} d6 {[%emt 0:04:13]} 12. Nd5+ {[%emt 0:01:47]} Ke6 {[%emt 0:00:11]} 13. Bh3+ {[%emt 0:00:10]} Ng4 {[%emt 0:01:08]} 14. Bxg4+ {[%emt 0:00:12]} f5 {[%emt 0:00:09]} 15. Bxf5+ {[%emt 0:00:04]} Kf7 {[%emt 0:00:04]} 16. Bxc8 {[%emt 0:00:17]} Rbxc8 {[%emt 0:00:07]} 17. c3 {[%emt 0:00:21]} h6 {[%emt 0:00:09]} 18. Be3 {[%emt 0:00:10]} b5 {[%emt 0:00:40]} 19. O-O {[%emt 0:00:19]} h5 {[%emt 0:00:19]} 20. h4 {[%emt 0:00:33]} Ke6 {[%emt 0:00:13]} 21. Rad1 {[%emt 0:01:08]} Ne7 {[%emt 0:00:22]} 22. Nxe7 {[%emt 0:00:07]} Kxe7 {[%emt 0:00:04]} 23. Rd2 {[%emt 0:00:46]} Rc6 {[%emt 0:00:30]} 24. Rfd1 {[%emt 0:00:08]} Ke6 {[%emt 0:00:15]} 25. f4 {[%emt 0:00:35]} exf4 {[%emt 0:00:31]} 26. Bxf4 {[%emt 0:00:20]} Rd8 {[%emt 0:00:04]} 27. Rd5 {[%emt 0:00:12]} g6 {[%emt 0:00:38]} 28. e5 {[%emt 0:00:20]} Ke7 1-0

[Event "CZE-ch U12 Open 2023"]
[Site "Teplice"]
[Date "2023.03.14"]
[Round "5.7"]
[White "Sboev, Kirill"]
[Black "Komarek, Tobias"]
[Result "1-0"]
[ECO "D85"]
[WhiteElo "1506"]
[BlackElo "1515"]
[Annotator "NA RC COMBH"]
[PlyCount "95"]
[EventDate "2023.03.09"]
[EventType "swiss"]
[EventCountry "CZE"]
[SourceTitle "playchess.com"]
[Source "ChessBase"]
[SourceQuality "1"]
[TimeControl "40/5400+30:1800+30"]

1. d4 {[%emt 0:00:02]} Nf6 {[%emt 0:02:26]} 2. c4 {[%emt 0:00:10]} g6 {[%emt 0:00:19]} 3. Nc3 {[%emt 0:00:13]} d5 {[%emt 0:00:33]} 4. cxd5 {[%emt 0:00:19]} Nxd5 {[%emt 0:00:09]} 5. e4 {[%emt 0:00:09]} Nxc3 {[%emt 0:00:05]} 6. bxc3 {[%emt 0:00:09]} Bg7 {[%emt 0:00:08]} 7. Nf3 {[%emt 0:00:48]} c5 {[%emt 0:00:27]} 8. h3 {[%emt 0:01:15]} O-O {[%emt 0:00:21]} 9. Be2 {[%emt 0:01:21]} Nc6 {[%emt 0:00:13]} 10. Be3 {[%emt 0:01:11]} cxd4 {[%emt 0:00:14]} 11. cxd4 {[%emt 0:00:17]} Qa5+ {[%emt 0:00:30]} 12. Bd2 {[%emt 0:00:45]} Qa3 {[%emt 0:01:33]} 13. Be3 {[%emt 0:09:03]} Qc3+ {[%emt 0:01:03]} 14. Bd2 {[%emt 0:01:52]} Qb2 {[%emt 0:02:51]} 15. Be3 {[%emt 0:05:11]} Rd8 {[%emt 0:00:41]} 16. O-O {[%emt 0:25:45]} Nxd4 {[%emt 0:01:09]} 17. Nxd4 {[%emt 0:01:07]} Bxd4 {[%emt 0:00:10]} 18. Rb1 {[%emt 0:01:09]} Qc3 {[%emt 0:02:02]} 19. Rc1 {[%emt 0:02:48]} Qa5 {[%emt 0:02:18]} 20. Bxd4 {[%emt 0:01:05]} e5 {[%emt 0:00:16]} 21. Bc3 {[%emt 0:01:09]} Qb6 {[%emt 0:01:36]} 22. Qb3 {[%emt 0:00:26]} Be6 {[%emt 0:01:17]} 23. Qxb6 {[%emt 0:01:12]} axb6 {[%emt 0:00:02]} 24. Bxe5 {[%emt 0:00:38]} Rxa2 {[%emt 0:00:12]} 25. Rfd1 {[%emt 0:01:29]} Re8 {[%emt 0:00:31]} 26. Bb5 {[%emt 0:00:39]} Rea8 {[%emt 0:02:51]} 27. Bc4 {[%emt 0:01:55]} Bxc4 {[%emt 0:01:08]} 28. Rxc4 {[%emt 0:00:06]} R2a5 {[%emt 0:00:30]} 29. Bf6 {[%emt 0:00:35]} Rc5 {[%emt 0:00:32]} 30. Rcd4 {[%emt 0:00:48]} Rcc8 {[%emt 0:00:10]} 31. Rd8+ {[%emt 0:00:17]} Rxd8 {[%emt 0:00:08]} 32. Rxd8+ {[%emt 0:00:07]} Rxd8 {[%emt 0:00:08]} 33. Bxd8 {[%emt 0:00:03]} b5 {[%emt 0:00:02]} 34. Ba5 {[%emt 0:00:09]} Kf8 {[%emt 0:00:17]} 35. Kf1 {[%emt 0:00:05]} Ke7 {[%emt 0:00:07]} 36. Ke2 {[%emt 0:00:08]} Kd6 {[%emt 0:00:04]} 37. Kd3 {[%emt 0:00:06]} Kc5 {[%emt 0:00:05]} 38. Kc3 {[%emt 0:00:04]} Kc6 {[%emt 0:00:29]} 39. Kd4 {[%emt 0:00:08]} f6 {[%emt 0:00:10]} 40. Bb4 {[%emt 0:00:13]} g5 {[%emt 0:00:25]} 41. g3 {[%emt 0:30:08]} h5 {[%emt 0:30:14]} 42. f4 {[%emt 0:01:05]} g4 {[%emt 0:00:42]} 43. h4 {[%emt 0:00:10]} b6 {[%emt 0:00:09]} 44. e5 {[%emt 0:00:08]} fxe5+ {[%emt 0:00:05]} 45. fxe5 {[%emt 0:00:06]} Kd7 {[%emt 0:00:03]} 46. Kd5 {[%emt 0:00:06]} Ke8 {[%emt 0:00:05]} 47. e6 {[%emt 0:00:24]} Kd8 {[%emt 0:00:06]} 48. Kd6 {[%emt 0:00:07]} 1-0

[Event "CZE-ch U12 Open 2023"]
[Site "Teplice"]
[Date "2023.03.14"]
[Round "5.8"]
[White "Frantsev, Iegor"]
[Black "Rendl, Lubos"]
[Result "0-1"]
[ECO "A45"]
[WhiteElo "1424"]
[BlackElo "1477"]
[Annotator "NA RC COMBH"]
[PlyCount "86"]
[EventDate "2023.03.09"]
[EventType "swiss"]
[EventCountry "CZE"]
[SourceTitle "playchess.com"]
[Source "ChessBase"]
[SourceQuality "1"]
[TimeControl "40/5400+30:1800+30"]

1. d4 {[%emt 0:00:02]} Nf6 {[%emt 0:00:04]} 2. Bf4 {[%emt 0:00:26]} c5 {[%emt 0:00:25]} 3. e3 {[%emt 0:00:52]} Nd5 {[%emt 0:04:11]} 4. Ne2 {[%emt 0:10:52]} cxd4 {[%emt 0:04:51]} 5. Qxd4 {[%emt 0:14:56]} Nxf4 {[%emt 0:00:57]} 6. Nxf4 {[%emt 0:03:26]} Nc6 {[%emt 0:00:35]} 7. Qd1 {[%emt 0:02:19]} Qb6 {[%emt 0:04:02]} 8. Qc1 {[%emt 0:17:27]} e6 {[%emt 0:05:55]} 9. c3 {[%emt 0:01:20]} g5 {[%emt 0:00:35]} 10. Ne2 {[%emt 0:04:21]} f5 {[%emt 0:04:12]} 11. Nd4 {[%emt 0:03:01]} h5 {[%emt 0:04:00]} 12. Nd2 {[%emt 0:03:25]} d5 {[%emt 0:01:59]} 13. Nxc6 {[%emt 0:02:11]} bxc6 {[%emt 0:00:13]} 14. Nf3 {[%emt 0:01:02]} g4 {[%emt 0:04:13]} 15. Nd4 {[%emt 0:05:42]} c5 {[%emt 0:03:26]} 16. Ne2 {[%emt 0:06:15]} e5 {[%emt 0:05:55]} 17. Qc2 {[%emt 0:00:39]} Kf7 {[%emt 0:04:13]} 18. Rd1 {[%emt 0:01:17]} Be6 {[%emt 0:01:32]} 19. g3 {[%emt 0:01:06]} Rb8 {[%emt 0:01:24]} 20. b3 {[%emt 0:01:28]} Bg7 {[%emt 0:04:03]} 21. Bg2 {[%emt 0:01:23]} Rhd8 {[%emt 0:00:41]} 22. h3 Kg6 {[%emt 0:03:57]} 23. hxg4 {[%emt 0:02:16]} hxg4 {[%emt 0:00:11]} 24. Rh4 {[%emt 0:00:17]} e4 {[%emt 0:01:37]} 25. Nf4+ {[%emt 0:01:34]} Kf7 {[%emt 0:00:53]} 26. Rh5 {[%emt 0:08:31]} Qa5 {[%emt 0:08:32]} 27. Rh7 {[%emt 0:03:13]} Rd7 {[%emt 0:02:39]} 28. Rxg7+ {[%emt 0:00:38]} Kxg7 {[%emt 0:00:47]} 29. Nxe6+ {[%emt 0:00:01]} Kf6 {[%emt 0:00:24]} 30. Nf4 {[%emt 0:00:44]} d4 {[%emt 0:02:22]} 31. exd4 {[%emt 0:01:11]} cxd4 {[%emt 0:00:14]} 32. b4 {[%emt 0:00:21]} Qc7 {[%emt 0:04:50]} 33. Qd2 {[%emt 0:01:38]} d3 {[%emt 0:00:51]} 34. Nh5+ {[%emt 0:00:33]} Kg6 {[%emt 0:04:44]} 35. Nf4+ {[%emt 0:00:08]} Kf7 {[%emt 0:00:21]} 36. a3 {[%emt 0:01:03]} Rc8 {[%emt 0:01:40]} 37. Qa2+ {[%emt 0:01:36]} Qc4 {[%emt 0:00:29]} 38. Qxc4+ {[%emt 0:00:02]} Rxc4 {[%emt 0:00:04]} 39. Kd2 {[%emt 0:00:11]} Rdc7 {[%emt 0:00:58]} 40. Rc1 {[%emt 0:01:26]} Rd7 {[%emt 0:02:57]} 41. Rh1 {[%emt 0:30:42]} Kg7 {[%emt 0:32:05]} 42. Nh5+ {[%emt 0:01:15]} Kg6 {[%emt 0:00:49]} 43. Nf4+ {[%emt 0:00:10]} Kf7 {[%emt 0:01:06]} 0-1